fUST/lending_fUST_20240507
["ID","MTS","AMOUNT","RATE_DAILY","PERIOD"]
[326536211,1715091050901,-151.0,0.00013699,2]
[326536212,1715091050910,-151.0,0.00013699,2]
[326536213,1715091050919,-151.0,0.00013699,2]
[326536214,1715091050928,-151.0,0.00013699,2]
[326536215,1715091050939,-151.0,0.00013699,2]
[326536216,1715091050949,-2339.086926,0.00013699,2]
[326536217,1715091050960,-231.770945,0.00013699,2]
[326536218,1715091050970,-2339.086926,0.00013699,2]
[326536219,1715091050981,-2339.086926,0.00013699,2]
[326536220,1715091050990,-2339.086926,0.00013699,2]
[326536221,1715091051001,-2339.086926,0.00013699,2]
[326536222,1715091051010,-2339.086926,0.00013699,2]
[326536223,1715091051020,-2339.086926,0.00013699,2]
[326536224,1715091051029,-2339.086926,0.00013699,2]
[326536225,1715091051039,-2339.086926,0.00013699,2]
[326536226,1715091051048,-2339.086926,0.00013699,2]
[326536227,1715091051059,-2339.086926,0.00013699,2]
[326536228,1715091051068,-2339.086926,0.00013699,2]
[326536229,1715091051077,-2339.086926,0.00013699,2]
[326536230,1715091051087,-2339.086926,0.00013699,2]
[326536231,1715091051101,-2339.086926,0.00013699,2]
[326536232,1715091051111,-251.052623,0.00013699,2]
[326536233,1715091051121,-251.052623,0.00013699,2]
[326536234,1715091051132,-251.052623,0.00013699,2]
[326536235,1715091051141,-251.052623,0.00013699,2]
[326536236,1715091051150,-251.052623,0.00013699,2]
[326536237,1715091051159,-251.052623,0.00013699,2]
[326536238,1715091051170,-251.052623,0.00013699,2]
[326536239,1715091051179,-251.052623,0.00013699,2]
[326536240,1715091051190,-251.052623,0.00013699,2]
[326536241,1715091051199,-251.052623,0.00013699,2]
[326536242,1715091051211,-251.052623,0.00013699,2]
[326536243,1715091051220,-2339.086926,0.00013699,2]
[326536244,1715091051229,-251.052623,0.00013699,2]
[326536245,1715091051238,-1490.970447,0.00013699,2]
[326536246,1715091051248,-2339.086926,0.00013699,2]
[326536247,1715091051256,-251.052623,0.00013699,2]
[326536248,1715091051266,-2339.086926,0.00013699,2]
[326536249,1715091051276,-251.052623,0.00013699,2]
[326536250,1715091051286,-1490.970447,0.00013699,2]
[326536251,1715091051296,-2339.086926,0.00013699,2]
[326536252,1715091051305,-151.0,0.00013699,2]
[326536253,1715091051316,-251.052623,0.00013699,2]
[326536254,1715091051326,-1490.970447,0.00013699,2]
[326536255,1715091051335,-2339.086925,0.00013699,2]
[326536256,1715091051345,-251.052623,0.00013699,2]
[326536257,1715091051355,-151.0,0.00013699,2]
[326536258,1715091051364,-1490.970447,0.00013699,2]
[326536259,1715091051373,-251.052623,0.00013699,2]
[326536260,1715091051383,-1490.970447,0.00013699,2]
[326536261,1715091051392,-1490.970447,0.00013699,2]
[326536262,1715091051403,-251.052623,0.00013699,2]
[326536263,1715091051412,-151.0,0.00013699,2]
[326536264,1715091051422,-251.052623,0.00013699,2]
[326536265,1715091051431,-1490.970447,0.00013699,2]
[326536266,1715091051440,-251.052628,0.00013699,2]
[326536267,1715091051450,-151.0,0.00013699,2]
[326536268,1715091051460,-151.0,0.00013699,2]
[326536269,1715091051469,-151.0,0.00013699,2]
[326536270,1715091051478,-272.949915,0.00013699,2]
[326536271,1715091051491,-1490.970447,0.00013699,2]
[326536272,1715091051500,-1490.970447,0.00013699,2]
[326536273,1715091051510,-1490.970447,0.00013699,2]
[326536274,1715091051519,-1490.970447,0.00013699,2]
[326536275,1715091051528,-1490.970447,0.00013699,2]
[326536276,1715091051538,-1490.970447,0.00013699,2]
[326536277,1715091051547,-1490.970447,0.00013699,2]
[326536278,1715091051556,-1490.970447,0.00013699,2]
[326536279,1715091051566,-1490.970447,0.00013699,2]
[326536280,1715091051575,-1490.970447,0.00013699,2]
[326536281,1715091051584,-1490.970447,0.00013699,2]
[326536282,1715091051595,-1490.970447,0.00013699,2]
[326536283,1715091051607,-1490.9704404,0.00013699,2]
[326536284,1715091051619,-152.501238,0.00013699,2]
[326536285,1715091051628,-271.402536,0.00013699,2]
[326536286,1715091051639,-271.402536,0.00013699,2]
[326536287,1715091051648,-271.402536,0.00013699,2]
[326536288,1715091051658,-271.402536,0.00013699,2]
[326536289,1715091051667,-271.402536,0.00013699,2]
[326536290,1715091051676,-271.402536,0.00013699,2]
[326536291,1715091051685,-271.402536,0.00013699,2]
[326536292,1715091051694,-271.402536,0.00013699,2]
[326536293,1715091051704,-271.402536,0.00013699,2]
[326536294,1715091051713,-271.402536,0.00013699,2]
[326536295,1715091051722,-271.402536,0.00013699,2]
[326536296,1715091051732,-271.402536,0.00013699,2]
[326536297,1715091051741,-271.402536,0.00013699,2]
[326536298,1715091051750,-271.402536,0.00013699,2]
[326536299,1715091051760,-271.402536,0.00013699,2]
[326536300,1715091051769,-271.402536,0.00013699,2]
[326536301,1715091051778,-271.402536,0.00013699,2]
[326536302,1715091051787,-271.402536,0.00013699,2]
[326536303,1715091051796,-271.402536,0.00013699,2]
[326536304,1715091051806,-271.402537,0.00013699,2]
[326536305,1715091051815,-442.564807,0.00013699,2]
[326536306,1715091051824,-442.564807,0.00013699,2]
[326536307,1715091051834,-442.564807,0.00013699,2]
[326536308,1715091051843,-442.564807,0.00013699,2]
[326536309,1715091051854,-442.564807,0.00013699,2]
[326536310,1715091051863,-442.564807,0.00013699,2]
[326536311,1715091051873,-442.564807,0.00013699,2]
[326536312,1715091051882,-442.564807,0.00013699,2]
[326536313,1715091051892,-442.564807,0.00013699,2]
[326536314,1715091051901,-1557.704589,0.00013699,2]
[326536315,1715091051911,-442.564807,0.00013699,2]
[326536316,1715091051921,-1557.704589,0.00013699,2]
[326536317,1715091051930,-442.564807,0.00013699,2]
[326536318,1715091051940,-442.564807,0.00013699,2]
[326536319,1715091051950,-442.564807,0.00013699,2]
[326536320,1715091051960,-1557.704589,0.00013699,2]
[326536321,1715091051969,-442.564807,0.00013699,2]
[326536322,1715091051980,-442.564807,0.00013699,2]
[326536323,1715091051990,-442.564807,0.00013699,2]
[326536324,1715091052000,-1557.704589,0.00013699,2]
[326536325,1715091052009,-1557.704589,0.00013699,2]
[326536326,1715091052018,-442.564807,0.00013699,2]
[326536327,1715091052027,-442.564807,0.00013699,2]
[326536328,1715091052037,-1557.704589,0.00013699,2]
[326536329,1715091052047,-442.564807,0.00013699,2]
[326536330,1715091052057,-1557.704589,0.00013699,2]
[326536331,1715091052066,-442.564808,0.00013699,2]
[326536332,1715091052076,-1557.704589,0.00013699,2]
[326536333,1715091052085,-1557.704589,0.00013699,2]
[326536334,1715091052100,-1557.704589,0.00013699,2]
[326536335,1715091052112,-1557.704589,0.00013699,2]
[326536336,1715091052122,-1557.704589,0.00013699,2]
[326536337,1715091052132,-1557.704589,0.00013699,2]
[326536338,1715091052142,-1557.704589,0.00013699,2]
[326536339,1715091052153,-1557.704589,0.00013699,2]
[326536340,1715091052163,-1557.704589,0.00013699,2]
[326536341,1715091052176,-1557.704589,0.00013699,2]
[326536342,1715091052187,-1557.704589,0.00013699,2]
[326536343,1715091052217,-635.349099,0.00013699,2]
[326536344,1715091052240,-1557.704589,0.00013699,2]
[326536345,1715091052270,-635.349099,0.00013699,2]
[326536346,1715091052322,-1557.704593,0.00013699,2]
[326536347,1715091052333,-635.349099,0.00013699,2]
[326536348,1715091052342,-635.349099,0.00013699,2]
[326536349,1715091052352,-635.349099,0.00013699,2]
[326536350,1715091052362,-635.349099,0.00013699,2]
[326536351,1715091052371,-635.349099,0.00013699,2]
[326536352,1715091052379,-635.349099,0.00013699,2]
[326536353,1715091052389,-635.349099,0.00013699,2]
[326536354,1715091052398,-635.349099,0.00013699,2]
[326536355,1715091052408,-151.0,0.00013699,2]
[326536356,1715091052417,-635.349099,0.00013699,2]
[326536357,1715091052426,-151.0,0.00013699,2]
[326536358,1715091052436,-151.0,0.00013699,2]
[326536359,1715091052445,-635.349099,0.00013699,2]
[326536360,1715091052453,-151.0,0.00013699,2]
[326536361,1715091052463,-635.349099,0.00013699,2]
[326536362,1715091052471,-674.89341,0.00013699,2]
[326536363,1715091052481,-151.0,0.00013699,2]
[326536364,1715091052491,-635.349099,0.00013699,2]
[326536365,1715091052500,-674.89341,0.00013699,2]
[326536366,1715091052510,-151.0,0.00013699,2]
[326536367,1715091052519,-635.349099,0.00013699,2]
[326536368,1715091052529,-674.89341,0.00013699,2]
[326536369,1715091052538,-151.0,0.00013699,2]
[326536370,1715091052548,-635.349099,0.00013699,2]
[326536371,1715091052559,-674.89341,0.00013699,2]
[326536372,1715091052569,-635.349099,0.00013699,2]
[326536373,1715091052580,-151.0,0.00013699,2]
[326536374,1715091052589,-674.89341,0.00013699,2]
[326536375,1715091052599,-635.349099,0.00013699,2]
[326536376,1715091052610,-151.0,0.00013699,2]
[326536377,1715091052619,-674.89341,0.00013699,2]
[326536378,1715091052629,-635.349099,0.00013699,2]
[326536379,1715091052638,-674.89341,0.00013699,2]
[326536380,1715091052648,-635.349092,0.00013699,2]
[326536381,1715091052657,-674.89341,0.00013699,2]
[326536382,1715091052667,-674.89341,0.00013699,2]
[326536383,1715091052688,-674.89341,0.00013699,2]
[326536384,1715091052704,-674.89341,0.00013699,2]
[326536385,1715091052715,-173.871399,0.00013699,2]
[326536386,1715091052724,-674.89341,0.00013699,2]
[326536387,1715091052735,-674.89341,0.00013699,2]
[326536388,1715091052745,-173.871399,0.00013699,2]
[326536389,1715091052754,-173.871399,0.00013699,2]
[326536390,1715091052764,-674.89341,0.00013699,2]
[326536391,1715091052774,-173.871399,0.00013699,2]
[326536392,1715091052784,-674.89341,0.00013699,2]
[326536393,1715091052793,-674.89341,0.00013699,2]
[326536394,1715091052804,-173.871399,0.00013699,2]
[326536395,1715091052813,-674.89341,0.00013699,2]
[326536396,1715091052823,-674.89341,0.00013699,2]
[326536397,1715091052833,-173.871399,0.00013699,2]
[326536398,1715091052842,-674.89341,0.00013699,2]
[326536399,1715091052852,-674.893408,0.00013699,2]
[326536400,1715091052865,-173.871399,0.00013699,2]
[326536401,1715091052874,-173.871399,0.00013699,2]
[326536402,1715091052883,-173.871399,0.00013699,2]
[326536403,1715091052892,-173.871399,0.00013699,2]
[326536404,1715091052902,-173.871399,0.00013699,2]
[326536405,1715091052917,-173.871399,0.00013699,2]
[326536406,1715091052938,-173.871399,0.00013699,2]
[326536407,1715091052959,-173.871399,0.00013699,2]
[326536408,1715091052982,-173.871399,0.00013699,2]
[326536409,1715091053005,-173.871399,0.00013699,2]
[326536410,1715091053043,-173.871399,0.00013699,2]
[326536411,1715091053083,-173.871399,0.00013699,2]
[326536412,1715091053106,-152.45541,0.00013699,2]
[326536413,1715091053127,-173.871399,0.00013699,2]
[326536414,1715091053147,-173.871402,0.00013699,2]
[326536415,1715091053157,-151.0,0.00013699,2]
[326536416,1715091053166,-151.0,0.00013699,2]
[326536417,1715091053176,-151.0,0.00013699,2]
[326536418,1715091053186,-151.0,0.00013699,2]
[326536419,1715091053196,-151.0,0.00013699,2]
[326536420,1715091053209,-151.0,0.00013699,2]
[326536421,1715091053233,-151.0,0.00013699,2]
[326536422,1715091053243,-151.0,0.00013699,2]
[326536423,1715091053255,-151.0,0.00013699,2]
[326536424,1715091053264,-151.0,0.00013699,2]
[326536425,1715091053275,-151.0,0.00013699,2]
[326536426,1715091053285,-151.0,0.00013699,2]
[326536427,1715091053296,-151.0,0.00013699,2]
[326536428,1715091053307,-151.0,0.00013699,2]
[326536429,1715091053317,-151.0,0.00013699,2]
[326536430,1715091053327,-151.0,0.00013699,2]
[326536431,1715091053337,-151.0,0.00013699,2]
[326536432,1715091053347,-151.0,0.00013699,2]
[326536433,1715091053356,-197.578572,0.00013699,2]
[326536434,1715091053366,-1230.353872,0.00013699,2]
[326536435,1715091053375,-151.0,0.00013699,2]
[326536436,1715091053385,-1230.353872,0.00013699,2]
[326536437,1715091053394,-151.0,0.00013699,2]
[326536438,1715091053404,-151.0,0.00013699,2]
[326536439,1715091053413,-1230.353872,0.00013699,2]
[326536440,1715091053535,-154.122221,0.00013699,2]
[326536441,1715091053545,-1230.353872,0.00013699,2]
[326536442,1715091053554,-1230.353872,0.00013699,2]
[326536443,1715091053563,-1230.353872,0.00013699,2]
[326536444,1715091053573,-1230.353872,0.00013699,2]
[326536445,1715091053582,-1230.353872,0.00013699,2]
[326536446,1715091053591,-1230.353872,0.00013699,2]
[326536447,1715091053600,-1230.353872,0.00013699,2]
[326536448,1715091053610,-1230.353872,0.00013699,2]
[326536449,1715091053619,-1230.353872,0.00013699,2]
[326536450,1715091053628,-1230.353872,0.00013699,2]
[326536451,1715091053638,-1230.353872,0.00013699,2]
[326536452,1715091053647,-1553.352785,0.00013699,2]
[326536453,1715091053656,-1230.353872,0.00013699,2]
[326536454,1715091053665,-1553.352785,0.00013699,2]
[326536455,1715091053674,-1553.352785,0.00013699,2]
[326536456,1715091053683,-1230.353872,0.00013699,2]
[326536457,1715091053692,-1230.353872,0.00013699,2]
[326536458,1715091053710,-1553.352785,0.00013699,2]
[326536459,1715091053720,-1553.352785,0.00013699,2]
[326536460,1715091053730,-1230.353872,0.00013699,2]
[326536461,1715091053741,-1553.352785,0.00013699,2]
[326536462,1715091053750,-1553.352785,0.00013699,2]
[326536463,1715091053760,-1553.352785,0.00013699,2]
[326536464,1715091053769,-1230.353872,0.00013699,2]
[326536465,1715091053778,-1553.352785,0.00013699,2]
[326536466,1715091053789,-1553.352785,0.00013699,2]
[326536467,1715091053798,-1230.353863,0.00013699,2]
[326536468,1715091053807,-1553.352785,0.00013699,2]
[326536469,1715091053817,-1553.352785,0.00013699,2]
[326536470,1715091053826,-1553.352785,0.00013699,2]
[326536471,1715091053836,-1553.352785,0.00013699,2]
[326536472,1715091053846,-1553.352785,0.00013699,2]
[326536473,1715091053857,-1553.352785,0.00013699,2]
[326536474,1715091053867,-1553.352785,0.00013699,2]
[326536475,1715091053876,-1553.352785,0.00013699,2]
[326536476,1715091053886,-1553.352785,0.00013699,2]
[326536477,1715091053896,-1553.352794,0.00013699,2]
[326536478,1715091053905,-151.0,0.00013699,2]
[326536479,1715091053915,-151.0,0.00013699,2]
[326536480,1715091053925,-151.0,0.00013699,2]
[326536481,1715091053934,-151.0,0.00013699,2]
[326536482,1715091053944,-151.0,0.00013699,2]
[326536483,1715091053954,-151.0,0.00013699,2]
[326536484,1715091053963,-151.0,0.00013699,2]
[326536485,1715091053974,-169.953176,0.00013699,2]
[326536486,1715091053987,-259.639414,0.00013699,2]
[326536487,1715091053996,-151.0,0.00013699,2]
[326536488,1715091054006,-151.0,0.00013699,2]
[326536489,1715091054016,-151.0,0.00013699,2]
[326536490,1715091054025,-153.711999,0.00013699,2]
[326536491,1715091054035,-494.0,0.00013837,2]
[326536492,1715091054044,-150.0,0.00013837,2]
[326536493,1715091054054,-153.0,0.000139,2]
[326536494,1715091054063,-153.0,0.000139,2]
[326536495,1715091054072,-153.0,0.000139,2]
[326536496,1715091054081,-153.0,0.000139,2]
[326536497,1715091054095,-153.0,0.000139,2]
[326536498,1715091054104,-2454.03089703,0.00013995,2]
[326536499,1715091054116,-929.30313536,0.00014,2]
[326536500,1715091054130,-150.0,0.0001407,2]
[326536501,1715091054140,-268.47629931,0.0001428,2]
[326536502,1715091054149,-286.28115087,0.0001428,2]
[326536503,1715091054161,-155.49541582,0.0001428,2]
[326536504,1715091054171,-154.9591906,0.0001428,2]
[326536505,1715091054181,-155.64288639,0.00014283,2]
[326536506,1715091054190,-854.57770278,0.00014285,2]
[326536507,1715091054199,-155.60263205,0.00014294,2]
[326536508,1715091054209,-271.1520628,0.00014329,2]
[326536509,1715091054218,-2454.03089703,0.0001439,2]
[326536510,1715091054227,-153.0,0.00014438,2]
[326536511,1715091054237,-153.0,0.00014521,2]
[326536512,1715091054246,-2454.03089703,0.00014786,2]
[326536513,1715091054256,-150.0,0.000149,2]
[326536514,1715091054266,-940.61834724,0.00015,2]
[326536515,1715091054275,-2395.74003987,0.00015,2]
[326536516,1715091054284,-2786.81149194,0.00015,2]
[326536517,1715091054294,-1147.36403711,0.00015,2]
[326536518,1715091054303,-699.91616693,0.00015046,2]
[326536519,1715091054313,-157.02974696,0.00015046,2]
[326536520,1715091054322,-1999.43137639,0.00015046,2]
[326536521,1715091054331,-239.71842675,0.0001505,2]
[326536522,1715091054341,-155.50781506,0.0001505,2]
[326536523,1715091054351,-300.41392153,0.0001505,2]
[326536524,1715091054361,-586.64431672,0.0001505,2]
[326536525,1715091054371,-227.54927398,0.0001505,2]
[326536526,1715091054380,-2106.42923228,0.00015051,2]
[326536527,1715091054389,-200.35678971,0.00015052,2]
[326536528,1715091054399,-197.26867063,0.00015052,2]
[326536529,1715091054408,-754.32029519,0.00015053,2]
[326536530,1715091054417,-150.0,0.00015077,2]
[326536531,1715091054427,-280.16232405,0.00015079,2]
[326536532,1715091054436,-2454.03089703,0.00015181,2]
[326536533,1715091054446,-927.2,0.00015199,2]
[326536534,1715091054455,-154.87994054,0.00015513,2]
[326536535,1715091054464,-155.14156002,0.00015513,2]
[326536536,1715091054473,-241.82135033,0.00015513,2]
[326536537,1715091054483,-293.90975456,0.00015513,2]
[326536538,1715091054492,-241.23035676,0.00015513,2]
[326536539,1715091054502,-1630.36744642,0.00015513,2]
[326536540,1715091054512,-234.1541886,0.00015514,2]
[326536541,1715091054521,-2454.03089703,0.00015577,2]
[326536542,1715091054531,-167.0,0.0001574,2]
[326536543,1715091054540,-2105.033551,0.00015873,2]
[326536544,1715091054550,-1776.003658,0.00015873,2]
[326536545,1715091054560,-167.557911,0.00015873,2]
[326536546,1715091054570,-224.967019,0.0001589,2]
[326536547,1715091054580,-196.211756,0.0001589,2]
[326536548,1715091054589,-168.511157,0.0001589,2]
[326536549,1715091054598,-284.164095,0.0001589,2]
[326536550,1715091054609,-2454.03089703,0.00015972,2]
[326536551,1715091054618,-894.11068204,0.00016,2]
[326536552,1715091054628,-991.46263386,0.00016,2]
[326536553,1715091054637,-500.0,0.00016,2]
[326536554,1715091054647,-12044.0986635,0.00016,5]
[326536555,1715091054656,-153.0,0.00016,2]
[326536556,1715091054665,-2105.033551,0.00016071,2]
[326536557,1715091054675,-1776.003658,0.00016071,2]
[326536558,1715091054684,-150.0,0.00016176,2]
[326536559,1715091054693,-4542.40472463,0.00016238,2]
[326536560,1715091054703,-2105.033551,0.00016269,2]
[326536561,1715091054712,-1776.003658,0.00016269,2]
[326536562,1715091054722,-804.249544,0.00016284,2]
[326536563,1715091054732,-907.421335,0.00016284,2]
[326536564,1715091054741,-927.2,0.00016287,2]
[326536565,1715091054751,-311.0,0.00016317,2]
[326536566,1715091054760,-274.44154292,0.00016333,2]
[326536567,1715091054769,-155.0721743,0.00016333,2]
[326536568,1715091054779,-187.3264458,0.00016333,2]
[326536569,1715091054789,-1694.695879,0.00016335,2]
[326536570,1715091054802,-296.5852813,0.00016336,2]
[326536571,1715091054812,-259.25471415,0.00016336,2]
[326536572,1715091054823,-160.33317178,0.00016336,2]
[326536573,1715091054832,-167.60420816,0.00016336,2]
[326536574,1715091054841,-213.98739483,0.00016336,2]
[326536575,1715091054851,-180.25895235,0.00016336,2]
[326536576,1715091054861,-154.9400109,0.00016336,2]
[326536577,1715091054871,-154.78205877,0.00016336,2]
[326536578,1715091054880,-198.73873327,0.00016336,2]
[326536579,1715091054890,-156.02837537,0.00016336,2]
[326536580,1715091054900,-154.88904506,0.00016336,2]
[326536581,1715091054910,-156.78690909,0.00016336,2]
[326536582,1715091054920,-241.37203981,0.00016336,2]
[326536583,1715091054929,-300.27905451,0.00016336,2]
[326536584,1715091054939,-155.05877696,0.00016336,2]
[326536585,1715091054948,-473.08254773,0.00016336,2]
[326536586,1715091054958,-163.95152398,0.00016336,2]
[326536587,1715091054967,-196.63306255,0.00016336,2]
[326536588,1715091054979,-186.84395512,0.00016336,2]
[326536589,1715091054989,-155.55190768,0.00016337,2]
[326536590,1715091054998,-4836.70766331,0.00016337,2]
[326536592,1715091234068,154.75239617,9.999e-05,2]
[326536594,1715091453970,154.76784823,9.999e-05,2]
[326536595,1715091537805,-154.75239617,0.00013398,2]
[326536596,1715091537840,-189.25787124,0.00013399,2]
[326536597,1715091538761,-1160.92789741,0.00013499,2]
[326536598,1715091540630,154.76784823,0.00013397,2]
[326536599,1715091972909,5000.0,0.000211,9]
[326536600,1715092056536,154.76784823,9.999e-05,2]
[326536601,1715092108806,483.90729918,9.999e-05,2]
[326536631,1715092235519,-158.60020702,0.00013597,2]
[326536633,1715092235534,-414.27722311,0.00013597,2]
[326536635,1715092235544,-701.3012313,0.00013597,2]
[326536638,1715092235558,-2768.88236731,0.00013598,2]
[326536641,1715092235568,-150.0,0.00013831,2]
[326536642,1715092235578,-1211.435983,0.000144,2]
[326536643,1715092235588,-24900.0,0.00014653,2]
[326536644,1715092235598,-150.0,0.00014783,2]
[326536645,1715092235608,-569.93169596,0.00015,2]
[326536646,1715092235619,-1147.36403711,0.00015,2]
[326536647,1715092235629,-940.61834724,0.00015,2]
[326536648,1715092235641,-2395.74003987,0.00015887,2]
[326536649,1715092235654,-224.967019,0.0001589,2]
[326536650,1715092235664,-150.0,0.00015909,2]
[326536651,1715092235675,-894.11068204,0.00016326,2]
[326536652,1715092235685,-894.11068204,0.00016327,2]
[326536653,1715092235695,-1460.7548338,0.00016328,2]
[326536783,1715092247968,-1683.2701669,0.00013699,2]
[326536784,1715092247980,-494.0,0.0001383,2]
[326536785,1715092247990,-442.24446343,0.00016328,2]
[326536786,1715092248000,-306.0,0.00016329,2]
[326536787,1715092248010,-153.0,0.00016329,2]
[326536788,1715092248021,-893.6698568,0.00016336,2]
[326536789,1715092248031,-892.79010341,0.00016336,2]
[326536790,1715092248042,-236.13395469,0.00016336,2]
[326536791,1715092248052,-234.7044022,0.00016336,2]
[326536792,1715092248063,-616.22881713,0.00016336,2]
[326536793,1715092248073,-2103.48558965,0.00016336,2]
[326536794,1715092248083,-285.26297634,0.00016337,2]
[326536795,1715092248093,-975.9952547,0.00016337,2]
[326536796,1715092248104,-306.75386219,0.00016338,2]
[326536797,1715092248114,-2000.0,0.00016338,2]
[326536798,1715092248125,-55555.0,0.00016338,2]
[326536799,1715092248135,-155.18026764,0.00016399,2]
[326536800,1715092248145,-50225.29827417,0.000164,2]
[326536801,1715092248155,-306.75386212,0.00016416,2]
[326536802,1715092248165,-53691.43176174,0.00016438,5]
[326536803,1715092248175,-2736.39189656,0.00016438,2]
[326536804,1715092248188,-6152.0,0.00016438,2]
[326536805,1715092248201,-975.06662166,0.00016438,2]
[326536806,1715092248211,-500.0,0.00016438,2]
[326536807,1715092248221,-334.06125096,0.00016438,2]
[326536808,1715092248231,-281.97554031,0.00016438,2]
[326536812,1715092688045,154.76784823,9.999e-05,2]
[326536813,1715092699054,1379.95237433,9.999e-05,2]
[326536820,1715093281254,292.10085152,9.999e-05,2]
[326536821,1715093291521,-293.59932405,0.00013739,2]
[326536822,1715093294320,-189.25787124,0.0001374,2]
[326536823,1715093297534,-494.0,0.00013841,2]
[326536824,1715093298363,-150.0,0.00013841,2]
[326536825,1715093307681,-3000.0,0.0001434,2]
[326536826,1715093308817,-1143.154042,0.00014471,2]
[326536827,1715093309983,-5924.3089156,0.00014788,2]
[326536828,1715093310009,-150.0,0.00014793,2]
[326536829,1715093310034,-156.67931437,0.000149,2]
[326536830,1715093310060,-15688.54119062,0.00014993,2]
[326536831,1715093310085,-3054.9715797,0.00014995,2]
[326536832,1715093310109,-1881.78834853,0.00014997,2]
[326536833,1715093310134,-780.05392574,0.00014999,2]
[326536834,1715093310158,-940.61834724,0.00015,2]
[326536835,1715093310457,16046.37107718,0.00014992,2]
[326536836,1715093310571,226.1371069,0.00014992,2]
[326536837,1715093339670,156.67931435,0.000149,2]
[326536839,1715093384366,156.67931435,0.000149,2]
[326536846,1715093437312,-24900.0,0.00015152,2]
[326536849,1715093437324,-940.61834724,0.00015877,2]
[326536852,1715093437336,-354.3455254,0.00015878,2]
[326536855,1715093437347,-194.759825,0.0001589,2]
[326536858,1715093437358,-168.511157,0.0001589,2]
[326536860,1715093437369,-150.0,0.00015918,2]
[326536862,1715093437380,-153.0,0.00016,2]
[326536864,1715093437392,-1902.99929723,0.00016,2]
[326536866,1715093437403,-894.11068204,0.00016272,2]
[326536868,1715093437414,-155.93588005,0.00016273,2]
[326536870,1715093437426,-58871.9614539,0.00016299,2]
[326536945,1715093440458,150.0,0.00014755,2]
[326537013,1715093443904,-150.0,0.00015884,2]
[326537016,1715093443914,-419.82112948,0.00016299,2]
[326537018,1715093443923,-35715.76278144,0.000163,2]
[326537037,1715093445998,-501.04989642,0.000163,2]
[326537039,1715093446007,-230.06539659,0.000163,2]
[326537041,1715093446016,-2000.0,0.000163,2]
[326537043,1715093446026,-2410.71101092,0.00016336,2]
[326537045,1715093446035,-875.63506207,0.00016336,2]
[326537047,1715093446045,-526.81613123,0.00016336,2]
[326537049,1715093446054,-250.20884188,0.00016336,2]
[326537051,1715093446064,-254.28664054,0.00016336,2]
[326537052,1715093446073,-223.6823407,0.00016336,2]
[326537053,1715093446083,-205.03706654,0.00016336,2]
[326537054,1715093446092,-188.25277873,0.00016336,2]
[326537055,1715093446101,-158.07345455,0.00016336,2]
[326537056,1715093446112,-155.37166991,0.00016336,2]
[326537057,1715093446121,-154.84504687,0.00016336,2]
[326537058,1715093446131,-250.30585746,0.00016336,2]
[326537059,1715093446141,-193.79734343,0.00016336,2]
[326537060,1715093446151,-227.62198981,0.00016336,2]
[326537061,1715093446161,-267.20341815,0.00016336,2]
[326537062,1715093446170,-170.21789675,0.00016336,2]
[326537063,1715093446179,-208.61927284,0.00016336,2]
[326537064,1715093446190,-155.76071258,0.00016336,2]
[326537065,1715093446199,-234.52792486,0.00016336,2]
[326537066,1715093446208,-171.72456816,0.00016336,2]
[326537067,1715093446217,-314.36756752,0.00016336,2]
[326537068,1715093446227,-340.30285018,0.00016336,2]
[326537069,1715093446236,-262.03251466,0.00016336,2]
[326537070,1715093446245,-301.01592841,0.00016336,2]
[326537071,1715093446255,-155.76995916,0.00016336,2]
[326537072,1715093446264,-155.3497844,0.00016336,2]
[326537073,1715093446273,-156.06290913,0.00016336,2]
[326537074,1715093446282,-226.77537721,0.00016336,2]
[326537075,1715093446292,-251.59607577,0.00016336,2]